[Event "10th Cesme Open-A 2024"]
[Site "Cesme"]
[Date "2024.06.23"]
[Round "1"]
[White "Bernadskiy, Vitaliy"]
[Black "Kirilmaz, Emre"]
[Result "1/2-1/2"]
[ECO "B12"]
[WhiteElo "2563"]
[BlackElo "2195"]
[Annotator "TA"]
[PlyCount "75"]
[EventDate "2024.06.23"]
[EventType "swiss"]
[EventCountry "TUR"]
[SourceTitle "playchess.com"]
[Source "ChessBase"]
[SourceQuality "1"]
[TimeControl "5400+30"]

{[%evp 11,75,27,24,39,45,59,57,59,39,41,38,42,184,216,210,205,218,210,226,222,195,115,101,121,150,28,48,28,64,70,40,19,21,21,17,11,17,0,0,0,0,0,-14,-20,0,-45,-44,-44,-45,-66,-74,-83,-93,-92,-85,-158,-148,-178,-165,-156,-84,-85,-85,-72,-54,-57]} 1. e4 {[%emt 0:01:00]} c6 {[%emt 0:01:00]} 2. d4 {[%emt 0:00:30]} d5 {[%emt 0:00:30]} 3. e5 {[%emt 0:00:30]} Bf5 {[%emt 0:00:30]} 4. Nf3 {[%emt 0:00:30]} e6 {[%emt 0:00:30]} 5. Be2 {[%emt 0:00:00]} Nd7 {[%emt 0:01:30]} 6. O-O {[%emt 0:00:00]} h6 {[%emt 0:00:30]} 7. a4 {[%emt 0:00:00][%cal Ba2a4,Ba4a5,Ba5a6][%mdl 32]} Ne7 {[%emt 0:00:00]} 8. a5 {[%emt 0:00:00]} c5 {[%emt 0:00:00]} 9. a6 {[%emt 0:01:30] White is slightly better.} b6 {[%emt 0:02:30]} 10. Bb5 {[%emt 0:00:30] Prevents Nc6.} Rc8 {[%emt 0:05:30]} 11. c4 {[%emt 0:01:30]} cxd4 {[%emt 0:04:30]} ({Black should play} 11... g5 $14) 12. cxd5 $18 {[%emt 0:01:30]} (12. Nxd4 $6 dxc4 13. Nxf5 Nxf5 $16) 12... Nxd5 {[%emt 0:02:30]} 13. Nxd4 {[%emt 0:00:30]} ({Worse is} 13. Qxd4 Bb4 $11) 13... Bxb1 {[%emt 0:00:00]} 14. Rxb1 {[%emt 0:00:00] And now Nc6 would win.} Bc5 {[%emt 0:01:00]} 15. Nc6 {[%emt 0:01:00]} Qc7 {[%emt 0:00:30]} 16. Bd2 {[%emt 0:01:30]} (16. Qd3 $18 {Threatens to win with b4.} Ne7 17. Nxa7 (17. Nxe7 Kxe7 18. Bf4 Nxe5 $16) 17... Qxa7 18. b4) 16... O-O $16 {[%emt 0:01:30]} 17. b4 {[%emt 0:00:30]} Be7 {[%emt 0:03:30] [#]} 18. Nxe7+ {[%emt 0:03:30]} (18. Re1 $1 $16) 18... Nxe7 $11 {[%emt 0:00:30] Excellent horsemanship.} 19. Rc1 {[%emt 0:01:30]} Qd8 {[%emt 0:00:30]} 20. Rxc8 {[%emt 0:06:30]} Qxc8 {[%emt 0:00:30]} 21. Qe2 {[%emt 0:00:30]} Rd8 $1 {[%emt 0:02:30][%cal Od7e5]} 22. Rc1 {[%emt 0:00:30]} Qb8 {[%emt 0:01:30]} 23. f4 {[%emt 0:00:30]} Nf8 {[%emt 0:00:30]} 24. Bd3 {[%emt 0:02:30]} Rd4 {[%emt 0:05:30]} 25. Rc4 {[%emt 0:01:30]} Qd8 {[%emt 0:00:00]} 26. Rxd4 {[%emt 0:00:30]} Qxd4+ {[%emt 0:01:00]} 27. Qe3 {[%emt 0:00:30]} Qa1+ {[%emt 0:00:00]} 28. Bf1 {[%emt 0:00:30]} Nd5 {[%emt 0:01:00]} 29. Qe4 {[%emt 0:04:30]} Ng6 {[%emt 0:02:30]} 30. g3 {[%emt 0:03:30]} Nge7 {[%emt 0:02:30]} 31. Qe1 {[%emt 0:00:30]} Qb2 {[%emt 0:01:30]} 32. b5 {[%emt 0:04:30] Prevents Nc6} Nf5 {[%emt 0:01:30]} 33. Bc1 {[%emt 0:08:30]} (33. Qf2 $142) 33... Qc2 $17 {[%emt 0:07:30]} 34. Qd2 {[%emt 0:06:30]} Qc5+ {[%emt 0:01:30]} 35. Kh1 {[%emt 0:00:00]} Nd4 {[%emt 0:07:30]} (35... g6 $142 36. Qd1 Nde7 (36... Qf2 37. Qe2 $17)) 36. Ba3 {[%emt 0:08:00]} Qxa3 {[%emt 0:18:30]} 37. Qxd4 {[%emt 0:00:30]} Qc1 {[%emt 0:00:00]} 38. Kg1 {[%emt 0:03:30] What a bad dream for Black.   Weighted Error Value: White=0.20 (precise) /Black=0.15 (very precise) .  Mistake:       	White=3     	Black=2      Inaccurate:     	White=1     	---        OK:         	White=12    	Black=19     Best:        	White=7     	Black=1      Strong:       	---       	Black=1} 1/2-1/2

[Event "10th Cesme Open-A 2024"]
[Site "Cesme"]
[Date "2024.06.23"]
[Round "1"]
[White "Rasulov, Vugar"]
[Black "Selbes, Tamer Tarik"]
[Result "0-1"]
[ECO "A50"]
[WhiteElo "2557"]
[BlackElo "2183"]
[Annotator "TA"]
[PlyCount "114"]
[EventDate "2024.06.23"]
[EventType "swiss"]
[EventCountry "TUR"]
[SourceTitle "playchess.com"]
[Source "ChessBase"]
[SourceQuality "1"]
[TimeControl "5400+30"]

{[%evp 18,114,0,-67,-10,-16,-23,-17,-16,-27,-24,-16,-21,-12,0,0,4,0,0,0,61,46,54,33,42,25,33,0,0,0,-13,-28,11,-18,-26,-18,-20,-39,-5,-27,0,-32,-29,-549,-541,-447,-386,-1064,-543,-1018,-572,-535,-554,-580,-577,-565,-554,-602,-674,-661,-650,-975,-453,-443,-450,-402,-156,-156,-153,-147,-122,-292,-277,-290,-273,-283,-278,-1191,-1166,-1602,-1532,-29973,-29974,-29974,-29975,-29973,-29976,-29974,-29975,-29974,-29975,-29975,-29976,-29984,-29985,-29985,-29986,-29986,-29987]} 1. d4 {[%emt 0:01:00]} Nf6 {[%emt 0:01:00]} 2. c4 {[%emt 0:00:00]} e6 {[%emt 0:00:30]} 3. Bf4 {[%emt 0:00:00]} b6 {[%emt 0:02:30]} 4. Nc3 {[%emt 0:02:30]} Bb4 {[%emt 0:01:30]} 5. Qb3 {[%emt 0:02:30]} Nc6 {[%emt 0:06:30]} 6. Nf3 {[%emt 0:01:30] A50: Queen's Fianchetto Defence (1 d4 Nf6 2 c4 b6).} Ne4 $146 {[%emt 0:01:30]} ({Predecessor:} 6... Bb7 7. e3 O-O 8. Be2 Ne4 9. O-O Bxc3 10. bxc3 Na5 11. Qc2 f5 12. Nd2 Qe7 13. f3 Nxd2 14. Qxd2 {1-0 Conde Rodado,D (1776)-Manez Alino,S (1926) Cullera Bahia op 15th 2009 (6)}) 7. Qc2 {[%emt 0:01:30]} f5 {[%emt 0:02:30]} 8. e3 {[%emt 0:00:30]} Bb7 {[%emt 0:16:30]} 9. Be2 {[%emt 0:01:30]} Ne7 {[%emt 0:01:30]} (9... g5 $15) 10. Ne5 {[%emt 0:02:30]} (10. O-O $11) 10... O-O {[%emt 0:01:30]} (10... g5 $15 11. Bg3 (11. Bh5+ Ng6 $15) 11... Ng6) 11. f3 $11 {[%emt 0:02:30]} d6 {[%emt 0:04:30]} 12. Nd3 {[%emt 0:00:30]} Bxc3+ {[%emt 0:00:30]} 13. bxc3 {[%emt 0:00:00]} Nf6 {[%emt 0:03:30]} 14. O-O {[%emt 0:00:00]} Ng6 {[%emt 0:01:30]} 15. Bg3 {[%emt 0:01:30]} Nh5 {[%emt 0:06:30]} 16. Bf2 {[%emt 0:00:30]} e5 {[%emt 0:02:30]} 17. a4 {[%emt 0:06:30]} Qg5 {[%emt 0:03:30]} 18. Qd2 {[%emt 0:05:30]} Rae8 {[%emt 0:05:30]} ({Black should try} 18... c5 $11) 19. a5 $1 $14 {[%emt 0:07:30]} Nf6 {[%emt 0:08:30]} 20. d5 {[%emt 0:05:30]} Rf7 {[%emt 0:10:20]} 21. axb6 {[%emt 0:02:30]} axb6 {[%emt 0:00:04]} 22. Ra7 {[%emt 0:00:30]} Bc8 {[%emt 0:00:04]} 23. Rfa1 {[%emt 0:00:30]} Nh4 {[%emt 0:07:11]} 24. Ne1 {[%emt 0:02:30]} f4 {[%emt 0:00:53]} 25. e4 {[%emt 0:04:30]} Qh6 {[%emt 0:03:09]} 26. Ra8 {[%emt 0:01:30]} g5 {[%emt 0:00:33]} 27. h3 {[%emt 0:03:30]} Ref8 {[%emt 0:00:54]} (27... Nxg2 $5 28. Rxc8 Rxc8 29. Kxg2 Rcf8 $15) 28. Qd3 {[%emt 0:01:30]} (28. R1a7 $5) 28... Nh5 {[%emt 0:03:56]} 29. Rb8 {[%emt 0:01:30]} Ng3 {[%emt 0:00:10]} 30. Raa8 $2 {[%emt 0:01:30][%mdl 8192]} (30. Qd2 $11) 30... Nxg2 $1 $19 {[%emt 0:02:16]} 31. Nxg2 {[%emt 0:11:30]} Qxh3 {[%emt 0:00:07]} 32. Be1 $2 {[%emt 0:06:30]} (32. Bxg3 fxg3 33. Qe3 (33. Rxc8 $2 {is a self mate.} Qh2+ 34. Kf1 Qh1#) 33... Qh2+ 34. Kf1 Qh1+ 35. Qg1 Rxf3+ 36. Bxf3 Rxf3+ 37. Ke2 Qxg1 38. Rxc8+ Kg7 39. Kxf3 Qf2+ 40. Kg4 Qxg2 41. Rxc7+ Kh6 42. Raa7 Qxe4+ 43. Kxg3) 32... Qh1+ $19 {[%emt 0:01:19]} 33. Kf2 {[%emt 0:01:30]} g4 {[%emt 0:00:54]} 34. Bf1 {[%emt 0:01:30] [#]} Bd7 $1 {[%emt 0:02:44]} ({Less strong is} 34... Nxf1 35. Qxf1 Qh3 36. Rxc8 $17) 35. Rxf8+ {[%emt 0:02:30]} Rxf8 {[%emt 0:00:30]} 36. Rxf8+ {[%emt 0:00:30]} Kxf8 {[%emt 0:00:00]} 37. fxg4 {[%emt 0:00:30]} Bxg4 {[%emt 0:00:00]} 38. Bd2 {[%emt 0:01:33]} Qh2 {[%emt 0:00:41]} 39. Ke1 {[%emt 0:01:54]} Nh1 {[%emt 0:01:25]} (39... f3 $142 40. Bh6+ Qxh6) 40. Bxf4 $19 {[%emt 0:02:38]} exf4 {[%emt 0:00:30]} 41. Qd4 {[%emt 0:00:00]} f3 $2 {[%emt 0:00:10]} (41... Qg3+ $19 {and Black stays clearly on top.} 42. Kd2 Kf7) 42. Ne3 $17 {[%emt 0:00:31]} Qh4+ {[%emt 0:01:27]} 43. Kd1 {[%emt 0:00:20]} Bd7 {[%emt 0:00:05]} 44. Qh8+ $2 {[%emt 0:00:54]} (44. e5 $17 Nf2+ 45. Kc1 Qxd4 46. cxd4) 44... Kf7 $19 {[%emt 0:00:03]} 45. e5 {[%emt 0:00:03]} dxe5 {[%emt 0:00:30]} 46. Qxe5 {[%emt 0:00:02]} Nf2+ {[%emt 0:00:54]} 47. Kd2 $2 {[%emt 0:00:03]} (47. Kc1 Ne4 48. Nc2) 47... Ne4+ $19 {[%emt 0:00:06]} 48. Kd1 {[%emt 0:01:24]} Ba4+ {[%emt 0:00:11]} 49. Nc2 {[%emt 0:00:07]} Bxc2+ {[%emt 0:01:16]} 50. Kxc2 {[%emt 0:00:02]} Qf2+ {[%emt 0:00:29]} 51. Kb3 {[%emt 0:00:01] [#]} Nc5+ $1 {[%emt 0:00:30]} 52. Ka3 {[%emt 0:00:08]} Qxf1 {[%emt 0:00:22]} 53. Qxc7+ {[%emt 0:00:02]} Ke8 {[%emt 0:00:11]} 54. Qc6+ {[%emt 0:00:40]} Nd7 {[%emt 0:00:42]} 55. d6 {[%emt 0:00:30]} Qa1+ {[%emt 0:00:30]} 56. Kb3 {[%emt 0:00:00]} Qb1+ {[%emt 0:00:00]} 57. Ka3 {[%emt 0:00:08]} Qf5 {[%emt 0:00:00]} 0-1

[Event "10th Cesme Open-A 2024"]
[Site "Cesme"]
[Date "2024.06.23"]
[Round "1"]
[White "Grover, Sahaj"]
[Black "Ozkan, Ervin"]
[Result "1-0"]
[ECO "C43"]
[WhiteElo "2510"]
[BlackElo "2147"]
[Annotator "TA"]
[PlyCount "55"]
[EventDate "2024.06.23"]
[EventType "swiss"]
[EventCountry "TUR"]
[SourceTitle "playchess.com"]
[Source "ChessBase"]
[SourceQuality "1"]
[TimeControl "5400+30"]

{[%evp 12,55,0,0,13,8,20,5,25,13,9,5,0,0,0,-1,0,0,0,0,0,-7,-1,0,0,0,955,961,877,873,908,936,931,925,1030,993,942,942,837,809,29979,29980,29984,29985,29996,29985]} 1. e4 {[%emt 0:01:00]} e5 {[%emt 0:01:00]} 2. Nf3 {[%emt 0:00:00]} Nf6 {[%emt 0:00:30]} 3. d4 {[%emt 0:00:00]} Nxe4 {[%emt 0:00:30]} 4. Bd3 {[%emt 0:00:30]} d5 {[%emt 0:00:30]} 5. Nxe5 {[%emt 0:00:30]} Nd7 {[%emt 0:00:30]} 6. Nc3 {[%emt 0:00:00]} Nxe5 {[%emt 0:00:30]} 7. dxe5 {[%emt 0:00:00]} Bb4 {[%emt 0:00:00]} 8. O-O {[%emt 0:00:30]} Nxc3 {[%emt 0:00:00]} 9. bxc3 {[%emt 0:00:30]} Bxc3 {[%emt 0:00:30] The position is equal.} 10. Rb1 {[%emt 0:01:30]} O-O {[%emt 0:00:30] [#]} (10... Bxe5 $2 11. Re1 Qe7 12. f4 $18) 11. Bxh7+ $1 {[%emt 0:05:30]} Kxh7 {[%emt 0:00:30]} 12. Qd3+ {[%emt 0:00:30]} Kg8 {[%emt 0:00:30]} 13. Qxc3 {[%emt 0:00:00]} a5 {[%emt 0:01:30]} 14. f4 {[%emt 0:06:00][%cal Bf2f4,Bf4f5][%mdl 32]} d4 $1 {[%emt 0:05:30]} 15. Qd3 {[%emt 0:08:30]} Re8 $1 {[%emt 0:07:30]} 16. Rb5 {[%emt 0:14:30]} b6 {[%emt 0:11:30] Hoping for ...Ba6.} 17. f5 {[%emt 0:12:30] aiming for f6.} Ba6 {[%emt 0:13:30] And now ...Rxe5 would win.} 18. Qg3 $36 {[%emt 0:00:30][%mdl 2048] Black is under pressure.} f6 $2 {[%emt 0:08:30][%mdl 8192]} (18... Bxb5 $11 19. Bg5 Qxg5 (19... Qd5 20. Bf6 g6 21. Qh3) 20. Qxg5 Rxe5 (20... Bxf1 21. f6 g6 22. Qh6 Rxe5 23. Qg7#)) 19. Qb3+ $18 {[%emt 0:00:30]} Kf8 {[%emt 0:01:30]} 20. Ba3+ {[%emt 0:06:30]} c5 {[%emt 0:01:30] [#]} 21. Rxc5 $1 {[%emt 0:00:30][%mdl 512]} bxc5 {[%emt 0:00:30]} 22. Bxc5+ {[%emt 0:00:30]} Re7 {[%emt 0:00:30]} 23. exf6 {[%emt 0:00:30]} gxf6 {[%emt 0:00:30]} 24. Re1 {[%emt 0:00:00]} Raa7 {[%emt 0:03:30]} 25. Qe6 {[%emt 0:00:00]} ({Stronger than} 25. Rxe7 Rxe7 26. Qe6 Qc7 $11 (26... d3 27. Qxf6+ Ke8 28. Bxe7 $11)) 25... d3 {[%emt 0:04:30]} 26. Qxf6+ {[%emt 0:00:30] White mates.} (26. Bxe7+ $2 {loses.} Qxe7 27. cxd3 Rc7 $19 (27... Qxe6 28. Rxe6 Kg7 29. Rd6 $17)) 26... Kg8 {[%emt 0:19:04]} 27. Bxe7 {[%emt 0:00:30]} Qe8 {[%emt 0:01:32]} 28. Re3 {[%emt 0:00:30] Weighted Error Value: White=0.01 (flawless) /Black=0.53.  Loses game:     	---       	Black=1      OK:         	White=5     	Black=2      Best:        	White=2     	Black=3      Strong:       	---       	Black=2      Brilliant:      	White=1     	---} 1-0

[Event "10th Cesme Open-A 2024"]
[Site "Cesme"]
[Date "2024.06.23"]
[Round "1"]
[White "Isik, Alparslan"]
[Black "Altun, Arda"]
[Result "1-0"]
[ECO "D12"]
[WhiteElo "2469"]
[BlackElo "2149"]
[Annotator "TA"]
[PlyCount "79"]
[EventDate "2024.06.23"]
[EventType "swiss"]
[EventCountry "TUR"]
[SourceTitle "playchess.com"]
[Source "ChessBase"]
[SourceQuality "1"]
[TimeControl "5400+30"]

{[%evp 15,79,22,27,12,23,9,60,42,58,44,57,62,72,62,75,67,58,8,135,144,166,129,281,252,274,256,261,276,302,308,308,311,331,368,362,370,377,373,381,374,491,486,489,462,725,663,797,791,1027,990,1046,970,1087,1037,2390,2237,1927,1474,29968,29969,29973,29973,29973,29974,29978,29977]} 1. d4 {[%emt 0:01:00]} d5 {[%emt 0:01:00]} 2. c4 {[%emt 0:00:30]} c6 {[%emt 0:00:30]} 3. Nf3 {[%emt 0:00:30]} Nf6 {[%emt 0:00:00]} 4. e3 {[%emt 0:00:00]} Bf5 {[%emt 0:00:00]} 5. Nc3 {[%emt 0:00:00]} e6 {[%emt 0:00:30]} 6. Nh4 {[%emt 0:00:30]} Be4 {[%emt 0:00:30]} 7. f3 {[%emt 0:00:30]} Bg6 {[%emt 0:00:30]} 8. Qb3 {[%emt 0:00:30]} Qc7 {[%emt 0:00:30]} 9. Nxg6 {[%emt 0:00:00]} hxg6 {[%emt 0:00:00]} 10. cxd5 {[%emt 0:00:00]} Nxd5 {[%emt 0:03:00]} (10... cxd5 $11 11. Bd2 Nc6) 11. e4 $14 {[%emt 0:00:00] White is slightly better.} Nxc3 {[%emt 0:00:30]} 12. bxc3 {[%emt 0:00:00]} Nd7 {[%emt 0:05:30][%cal Of8e7]} 13. g3 {[%emt 0:02:30]} e5 {[%emt 0:12:30]} 14. Kf2 {[%emt 0:23:30] White is more active.} Bd6 {[%emt 0:25:30]} 15. Kg2 {[%emt 0:04:30]} O-O-O {[%emt 0:17:30]} 16. Be2 {[%emt 0:07:30]} (16. Bc4 $14 f6 17. Be3) 16... exd4 {[%emt 0:10:30]} (16... f5 $11 {remains equal.}) 17. cxd4 $16 {[%emt 0:00:30]} f5 {[%emt 0:06:39]} 18. e5 {[%emt 0:03:30]} Bxe5 {[%emt 0:03:35] [#] This costs Black the game.} 19. dxe5 $18 {[%emt 0:00:30]} Qxe5 {[%emt 0:00:00]} 20. Qb2 {[%emt 0:00:30]} Rhe8 {[%emt 0:03:11]} 21. Qxe5 {[%emt 0:00:30]} Rxe5 {[%emt 0:01:25]} 22. Kf2 {[%emt 0:00:30]} Rde8 {[%emt 0:00:47]} 23. Re1 {[%emt 0:03:30]} Nc5 {[%emt 0:00:07][%cal Oc5d3]} 24. Bf4 {[%emt 0:00:30]} R5e6 {[%emt 0:01:48]} 25. Bc4 {[%emt 0:00:30]} Rxe1 {[%emt 0:00:30]} 26. Rxe1 {[%emt 0:00:00]} Rxe1 {[%emt 0:00:57]} 27. Kxe1 {[%emt 0:00:00]} b5 {[%emt 0:00:06]} 28. Be3 {[%emt 0:01:30]} Nd7 {[%emt 0:01:28]} 29. Be6 {[%emt 0:00:30]} a5 {[%emt 0:00:00]} (29... a6 $142 30. Bd4 Kd8) 30. Bd4 {[%emt 0:00:30]} Kd8 {[%emt 0:00:42]} 31. Bxg7 {[%emt 0:01:30]} Ke7 {[%emt 0:00:14]} 32. Bxd7 {[%emt 0:00:30]} Kxd7 {[%emt 0:00:05][%mdl 4096] Endgame. KB-KP} 33. Kd2 {[%emt 0:01:30]} Ke6 {[%emt 0:00:18]} 34. Bf8 {[%emt 0:01:30]} Ke5 {[%emt 0:06:10]} 35. h4 {[%emt 0:00:30]} Kf6 {[%emt 0:00:39]} 36. Bc5 {[%emt 0:00:30]} g5 {[%emt 0:00:30]} 37. hxg5+ {[%emt 0:00:30] White mates.} Kxg5 {[%emt 0:00:07]} 38. Kc3 {[%emt 0:00:30]} Kf6 {[%emt 0:00:06]} 39. Kd4 {[%emt 0:00:30]} a4 {[%emt 0:00:30]} 40. Bb4 {[%emt 0:00:00] Weighted Error Value: White=0.07 (flawless) /Black=0.58.  Mistake:       	White=1     	Black=4      Inaccurate:     	---       	Black=1      OK:         	White=13    	Black=7} 1-0

[Event "10th Cesme Open-A 2024"]
[Site "Cesme"]
[Date "2024.06.23"]
[Round "1"]
[White "Fromm, Marius"]
[Black "Kurt, Ozgur Toprak"]
[Result "1-0"]
[ECO "C11"]
[WhiteElo "2465"]
[BlackElo "2124"]
[Annotator "TA"]
[PlyCount "111"]
[EventDate "2024.06.23"]
[EventType "swiss"]
[EventCountry "TUR"]
[SourceTitle "playchess.com"]
[Source "ChessBase"]
[SourceQuality "1"]
[TimeControl "5400+30"]

{[%evp 13,110,0,13,22,24,19,33,18,33,-10,0,-1,60,54,42,42,75,64,119,58,60,54,53,73,64,33,64,53,53,47,233,239,237,218,224,219,248,175,233,221,287,203,403,388,561,491,687,619,671,649,650,628,661,644,550,-376,945,883,820,821,852,937,951,930,1105,724,29970,29971,29982,29980,29982,29983,29985,29986,29986,29987,29987,29988,29988,29989,29989,29989,29989,29990,29990,29991,29991,29990,29994,29993,29993,29993,29997,29998,29998,29998,29998,29999,29999]} 1. e4 {[%emt 0:01:00]} e6 {[%emt 0:01:00]} 2. d4 {[%emt 0:00:30]} d5 {[%emt 0:00:30]} 3. Nc3 {[%emt 0:00:30]} Nf6 {[%emt 0:00:30]} 4. e5 {[%emt 0:00:30]} Nfd7 {[%emt 0:00:30]} 5. f4 {[%emt 0:00:30]} c5 {[%emt 0:00:30]} 6. Nf3 {[%emt 0:00:00]} Nc6 {[%emt 0:00:30]} 7. Be3 {[%emt 0:00:00]} a6 {[%emt 0:00:00]} 8. Ne2 {[%emt 0:00:30]} Qb6 {[%emt 0:01:00]} 9. Qc1 {[%emt 0:00:00]} Be7 {[%emt 0:01:30]} 10. c3 {[%emt 0:00:00] White is slightly better.} O-O {[%emt 0:01:30]} 11. h4 {[%emt 0:00:00]} f6 {[%emt 0:01:30]} 12. h5 {[%emt 0:00:00]} cxd4 {[%emt 0:02:30]} ({Better is} 12... h6 $11) 13. Nexd4 $14 {[%emt 0:09:30]} Nxd4 {[%emt 0:02:30]} 14. Bxd4 {[%emt 0:04:30]} Qc7 {[%emt 0:03:30]} 15. Qe3 {[%emt 0:02:30]} f5 {[%emt 0:03:30]} (15... fxe5 $14 16. Nxe5 (16. fxe5 h6 $14) 16... Nxe5 17. Bxe5 Bd6) 16. b4 {[%emt 0:07:30]} (16. O-O-O $16) 16... a5 {[%emt 0:01:30]} 17. a3 {[%emt 0:00:30]} b6 {[%emt 0:01:30]} 18. Bb5 {[%emt 0:08:30]} Nc5 {[%emt 0:01:30]} 19. O-O {[%emt 0:02:30] c4 is the strong threat.} (19. h6 $5) 19... Rb8 {[%emt 0:03:30][%cal Oc8a6]} 20. Rab1 {[%emt 0:03:30] White is more active.} (20. bxc5 bxc5 21. a4 cxd4 22. cxd4 Bb4 $11) 20... Ne4 {[%emt 0:01:30]} 21. Rfc1 {[%emt 0:02:30]} Bc5 $2 {[%emt 0:24:30]} 22. c4 $1 $18 {[%emt 0:07:30]} (22. bxc5 $6 bxc5 23. c4 cxd4 24. cxd5 (24. Nxd4 dxc4 25. Rxc4 Qd8 $16) 24... dxe3 $16) 22... axb4 {[%emt 0:01:30]} 23. axb4 {[%emt 0:04:30]} Bxd4 {[%emt 0:00:30]} 24. Nxd4 {[%emt 0:00:00] cxd5 would now be deadly.} (24. Qxd4 dxc4 25. Qxc4 (25. Bxc4 Qf7 $14) 25... Qd8) 24... dxc4 {[%emt 0:00:30]} 25. Bxc4 {[%emt 0:01:00]} Qf7 {[%emt 0:01:30] [#]} 26. g4 $1 {[%emt 0:00:30][%mdl 512]} g6 {[%emt 0:00:30]} (26... Kh8 27. Rb2) 27. Bb3 {[%emt 0:03:30]} Re8 $2 {[%emt 0:06:30]} (27... Kh8 {was called for.} 28. h6 Ra8) 28. Rb2 {[%emt 0:05:30][%cal Bb1b2,Bb2c2,Bc2c7][%mdl 32] Black must now prevent Rg2.} Bb7 {[%emt 0:05:30]} (28... Kh8 {keeps fighting.} 29. Rg2 Bb7 30. hxg6 Qxg6 31. Bxe6 (31. gxf5 Qh5 $18) 31... Rxe6) 29. Rbc2 {[%emt 0:12:30] Strongly threatening Rc7.} Rbd8 {[%emt 0:03:30]} (29... fxg4 $2 30. Rc7) 30. Rc7 {[%emt 0:05:30]} Rd7 {[%emt 0:00:30]} 31. hxg6 {[%emt 0:11:07]} hxg6 {[%emt 0:02:30]} 32. Nxe6 {[%emt 0:01:42]} Rxe6 {[%emt 0:01:30]} 33. Rxd7 {[%emt 0:03:41]} Qxd7 {[%emt 0:00:30] [#]} 34. Qxb6 {[%emt 0:00:00][%mdl 8192]} ({Not} 34. Bxe6+ Qxe6 35. Qd4 Qd5 (35... fxg4 36. Qd8+ Kg7 37. Rc7+) 36. Qxd5+ (36. Qxb6 $2 Kf8 $19) 36... Bxd5 $11) (34. Rd1 $1 $18 {[%cal Rd1d7]} Qe7 35. Qxb6 (35. Bxe6+ Qxe6 36. Rd8+ Kf7 $16)) 34... Bd5 $4 {[%emt 0:10:47][%mdl 8192]} (34... Kf8 $19 35. Qe3 (35. Bxe6 $2 {is the wrong capture.} Qd3 $19) 35... Rc6 36. Rxc6 Qxc6 (36... Bxc6 $2 37. Bc2 $19)) 35. Qb8+ {[%emt 0:00:16]} Re8 {[%emt 0:00:35]} 36. Bxd5+ {[%emt 0:00:30]} Kf8 {[%emt 0:00:00]} 37. Qb7 {[%emt 0:00:21]} Qxb7 {[%emt 0:00:11]} 38. Bxb7 {[%emt 0:00:00]} Rb8 {[%emt 0:00:14]} 39. Bxe4 {[%emt 0:00:07]} Rxb4 {[%emt 0:00:26][%mdl 4096] Endgame. KRB-KR} 40. Bd5 {[%emt 0:02:20] White mates.} Rxf4 {[%emt 0:00:36]} 41. gxf5 {[%emt 0:00:30]} Rxf5 {[%emt 0:00:00]} 42. Rf1 {[%emt 0:00:18]} Ke7 {[%emt 0:00:03]} 43. Rxf5 {[%emt 0:00:00]} gxf5 {[%emt 0:00:31] KB-KP} 44. Kf2 {[%emt 0:00:10]} Kf8 {[%emt 0:00:30]} 45. Kf3 {[%emt 0:00:30]} Kg7 {[%emt 0:00:30]} 46. Kf4 {[%emt 0:00:30]} Kg6 {[%emt 0:00:30]} 47. Be6 {[%emt 0:00:30]} Kg7 {[%emt 0:00:00]} 48. Kxf5 {[%emt 0:00:00]} Kf8 {[%emt 0:00:00]} 49. Kf6 {[%emt 0:00:00]} Ke8 {[%emt 0:00:07]} 50. Bd5 {[%emt 0:00:00]} Kf8 {[%emt 0:00:30]} 51. e6 {[%emt 0:00:12]} Ke8 {[%emt 0:00:30]} 52. Bc6+ {[%emt 0:00:00]} Kf8 {[%emt 0:00:00]} 53. e7+ {[%emt 0:00:00]} Kg8 {[%emt 0:00:00]} 54. e8=Q+ {[%emt 0:00:00]} Kh7 {[%emt 0:00:00]} 55. Be4+ {[%emt 0:00:00]} Kh6 {[%emt 0:00:00]} 56. Qh8# {[%emt 0:00:00] Weighted Error Value: White=0.25 (precise) /Black=0.61.  Loses game:     	---       	Black=1      Mistake:       	White=1     	Black=4      Inaccurate:     	White=2     	Black=3      OK:         	White=7     	Black=9      Best:        	White=1     	Black=2      Strong:       	White=1     	---        Brilliant:      	White=1     	---} 1-0